[Event "Titled Tuesday Blitz April 11 Late 2023"]
[White "Lazavik, Denis"]
[Black "Grigoriants, Sergey"]
[WhiteFideId "13515110"]
[BlackFideId "4130804"]
[WhiteElo "2560"]
[BlackElo "2502"]
[Result "1-0"]
[Round "06"]
[TimeControl "180+2"]
[Date "2023.04.11"]
[WhiteClock "0:00:12"]
[BlackClock "0:00:03"]

1. d4 {[%clk 0:02:59]}  d5 {[%clk 0:02:56]} 2. c4 {[%clk 0:03:00]}  c6 {[%clk 0:02:56]} 3. Nf3 {[%clk 0:03:00]}  Nf6 {[%clk 0:02:57]} 4. Qc2 {[%clk 0:03:01]}  g6 {[%clk 0:02:53]} 5. cxd5 {[%clk 0:03:01]}  cxd5 {[%clk 0:02:51]} 6. Bf4 {[%clk 0:03:01]}  Nc6 {[%clk 0:02:49]} 7. Nc3 {[%clk 0:03:00]}  Bg7 {[%clk 0:02:47]} 8. e3 {[%clk 0:03:01]}  O-O {[%clk 0:02:46]} 9. Be2 {[%clk 0:03:01]}  Bf5 {[%clk 0:01:38]} 10. Qb3 {[%clk 0:02:59]}  Na5 {[%clk 0:01:33]} 11. Qb4 {[%clk 0:03:00]}  Rc8 {[%clk 0:01:30]} 12. O-O {[%clk 0:02:59]}  Re8 {[%clk 0:01:21]} 13. Rfc1 {[%clk 0:02:53]}  Bf8 {[%clk 0:01:19]} 14. Qa4 {[%clk 0:02:51]}  a6 {[%clk 0:01:16]} 15. h3 {[%clk 0:02:27]}  b5 {[%clk 0:01:14]} 16. Qd1 {[%clk 0:02:27]}  Nc4 {[%clk 0:01:14]} 17. b3 {[%clk 0:02:25]}  Nd6 {[%clk 0:01:12]} 18. Ne5 {[%clk 0:02:17]}  Qb6 {[%clk 0:01:05]} 19. Bd3 {[%clk 0:02:12]}  Bxd3 {[%clk 0:01:04]} 20. Qxd3 {[%clk 0:02:11]}  e6 {[%clk 0:01:04]} 21. a4 {[%clk 0:02:07]}  b4 {[%clk 0:00:52]} 22. a5 {[%clk 0:02:07]}  Qb7 {[%clk 0:00:52]} 23. Na4 {[%clk 0:02:05]}  Qb5 {[%clk 0:00:52]} 24. Nc5 {[%clk 0:01:59]}  Nfe4 {[%clk 0:00:46]} 25. Nxa6 {[%clk 0:01:49]}  Rxc1+ {[%clk 0:00:43]} 26. Rxc1 {[%clk 0:01:47]}  Qxa5 {[%clk 0:00:39]} 27. f3 {[%clk 0:01:26]}  Nc3 {[%clk 0:00:22]} 28. Nxb4 {[%clk 0:01:25]}  Ndb5 {[%clk 0:00:14]} 29. Nc2 {[%clk 0:01:15]}  Qa2 {[%clk 0:00:13]} 30. b4 {[%clk 0:00:59]}  Rc8 {[%clk 0:00:14]} 31. Kh2 {[%clk 0:00:54]}  Qb2 {[%clk 0:00:12]} 32. Re1 {[%clk 0:00:53]}  Bxb4 {[%clk 0:00:11]} 33. Nxb4 {[%clk 0:00:52]}  Qxb4 {[%clk 0:00:12]} 34. Nd7 {[%clk 0:00:51]}  Qc4 {[%clk 0:00:10]} 35. Qd2 {[%clk 0:00:47]}  Qa2 {[%clk 0:00:09]} 36. Qxa2 {[%clk 0:00:36]}  Nxa2 {[%clk 0:00:10]} 37. Nf6+ {[%clk 0:00:37]}  Kf8 {[%clk 0:00:08]} 38. Nxh7+ {[%clk 0:00:36]}  Ke7 {[%clk 0:00:09]} 39. Bg5+ {[%clk 0:00:37]}  Kd6 {[%clk 0:00:09]} 40. Nf6 {[%clk 0:00:38]}  Rc2 {[%clk 0:00:08]} 41. h4 {[%clk 0:00:36]}  Nbc3 {[%clk 0:00:07]} 42. Kh3 {[%clk 0:00:35]}  Nb4 {[%clk 0:00:07]} 43. Ra1 {[%clk 0:00:31]}  Nca2 {[%clk 0:00:05]} 44. Rb1 {[%clk 0:00:29]}  Kc6 {[%clk 0:00:02]} 45. Rb3 {[%clk 0:00:17]}  Rc1 {[%clk 0:00:02]} 46. g4 {[%clk 0:00:15]}  Kb5 {[%clk 0:00:02]} 47. Ra3 {[%clk 0:00:13]}  Nc3 {[%clk 0:00:01]} 48. h5 {[%clk 0:00:13]}  gxh5 {[%clk 0:00:01]} 49. gxh5 {[%clk 0:00:13]}  Ne2 {[%clk 0:00:02]} 50. h6 {[%clk 0:00:11]}  Rh1+ {[%clk 0:00:02]} 51. Kg2 {[%clk 0:00:11]}  Rg1+ {[%clk 0:00:03]} 52. Kf2 {[%clk 0:00:12]}  Rxg5 {[%clk 0:00:03]} 53. h7 {[%clk 0:00:12]}  Nc1 {[%clk 0:00:03]} 54. h8=Q {[%clk 0:00:10]}  Ncd3+ {[%clk 0:00:03]} 55. Rxd3 {[%clk 0:00:11]}  Nxd3+ {[%clk 0:00:03]} 56. Ke2 {[%clk 0:00:12]} 1-0


[Site "https://www.chess.com"]

[Event "Titled Tuesday Blitz April 11 Late 2023"]
[White "Holt, Conrad"]
[Black "Firouzja, Alireza"]
[WhiteFideId "2034387"]
[BlackFideId "12573981"]
[WhiteElo "2592"]
[BlackElo "2904"]
[Result "1-0"]
[Round "06"]
[TimeControl "180+2"]
[Date "2023.04.11"]
[WhiteClock "0:00:21"]
[BlackClock "0:00:02"]

1. d4 {[%clk 0:03:00]}  Nf6 {[%clk 0:02:59]} 2. c4 {[%clk 0:03:00]}  g6 {[%clk 0:02:59]} 3. Nc3 {[%clk 0:03:01]}  Bg7 {[%clk 0:02:59]} 4. e4 {[%clk 0:03:01]}  d6 {[%clk 0:03:00]} 5. Nf3 {[%clk 0:03:01]}  O-O {[%clk 0:03:01]} 6. h3 {[%clk 0:03:02]}  e5 {[%clk 0:02:59]} 7. dxe5 {[%clk 0:03:01]}  dxe5 {[%clk 0:02:59]} 8. Qxd8 {[%clk 0:03:02]}  Rxd8 {[%clk 0:03:00]} 9. Bg5 {[%clk 0:03:02]}  Na6 {[%clk 0:02:56]} 10. Nd5 {[%clk 0:03:03]}  Rd6 {[%clk 0:02:56]} 11. Bxf6 {[%clk 0:03:03]}  Bxf6 {[%clk 0:02:56]} 12. Rc1 {[%clk 0:03:03]}  c5 {[%clk 0:02:13]} 13. Be2 {[%clk 0:02:54]}  Bg7 {[%clk 0:02:04]} 14. a3 {[%clk 0:02:51]}  Be6 {[%clk 0:01:53]} 15. O-O {[%clk 0:02:49]}  Rad8 {[%clk 0:01:48]} 16. b4 {[%clk 0:02:31]}  Kf8 {[%clk 0:01:23]} 17. Rb1 {[%clk 0:02:10]}  f5 {[%clk 0:01:14]} 18. Ng5 {[%clk 0:02:03]}  Bg8 {[%clk 0:01:13]} 19. f4 {[%clk 0:01:59]}  exf4 {[%clk 0:00:28]} 20. Rxf4 {[%clk 0:01:50]}  h6 {[%clk 0:00:21]} 21. Nf3 {[%clk 0:01:48]}  Bh7 {[%clk 0:00:21]} 22. h4 {[%clk 0:01:31]}  Kg8 {[%clk 0:00:06]} 23. exf5 {[%clk 0:01:29]}  gxf5 {[%clk 0:00:06]} 24. Bd3 {[%clk 0:01:27]}  cxb4 {[%clk 0:00:06]} 25. axb4 {[%clk 0:01:22]}  Nc7 {[%clk 0:00:07]} 26. Nxc7 {[%clk 0:01:11]}  Rxd3 {[%clk 0:00:07]} 27. Ne6 {[%clk 0:01:11]}  Rd1+ {[%clk 0:00:07]} 28. Rxd1 {[%clk 0:01:05]}  Rxd1+ {[%clk 0:00:08]} 29. Kf2 {[%clk 0:01:06]}  Bf6 {[%clk 0:00:08]} 30. g4 {[%clk 0:01:03]}  Rb1 {[%clk 0:00:05]} 31. b5 {[%clk 0:00:56]}  Kf7 {[%clk 0:00:05]} 32. gxf5 {[%clk 0:00:55]}  Bxf5 {[%clk 0:00:06]} 33. Nc5 {[%clk 0:00:34]}  b6 {[%clk 0:00:03]} 34. Rxf5 {[%clk 0:00:33]}  bxc5 {[%clk 0:00:04]} 35. Rxc5 {[%clk 0:00:33]}  Rb2+ {[%clk 0:00:04]} 36. Kg3 {[%clk 0:00:33]}  Rc2 {[%clk 0:00:02]} 37. Rc7+ {[%clk 0:00:31]}  Ke6 {[%clk 0:00:02]} 38. Kf4 {[%clk 0:00:29]}  Rc3 {[%clk 0:00:01]} 39. Rc6+ {[%clk 0:00:29]}  Kf7 {[%clk 0:00:02]} 40. h5 {[%clk 0:00:26]}  Kg7 {[%clk 0:00:02]} 41. Ke4 {[%clk 0:00:26]}  Kf7 {[%clk 0:00:02]} 42. c5 {[%clk 0:00:24]}  Ke7 {[%clk 0:00:02]} 43. Ne5 {[%clk 0:00:19]}  Rh3 {[%clk 0:00:02]} 44. Ng6+ {[%clk 0:00:19]}  Kf7 {[%clk 0:00:02]} 45. Nf4 {[%clk 0:00:19]}  Rh4 {[%clk 0:00:02]} 46. Kf5 {[%clk 0:00:20]}  Bg5 {[%clk 0:00:02]} 47. Rc7+ {[%clk 0:00:20]}  Ke8 {[%clk 0:00:02]} 48. Ne6 {[%clk 0:00:20]}  Rh1 {[%clk 0:00:01]} 49. Rxa7 {[%clk 0:00:20]}  Rf1+ {[%clk 0:00:01]} 50. Ke5 {[%clk 0:00:20]}  Re1+ {[%clk 0:00:01]} 51. Kd5 {[%clk 0:00:21]}  Bf6 {[%clk 0:00:01]} 52. Ra8+ {[%clk 0:00:20]}  Ke7 {[%clk 0:00:01]} 53. Ra7+ {[%clk 0:00:21]}  Ke8 {[%clk 0:00:01]} 54. b6 {[%clk 0:00:21]}  Rd1+ {[%clk 0:00:02]} 55. Kc6 {[%clk 0:00:21]} 1-0


[Site "https://www.chess.com"]

[Event "Titled Tuesday Blitz April 11 Late 2023"]
[White "Szpar, Milosz"]
[Black "Martinez Alcantara, Jose Eduardo"]
[WhiteFideId "1184989"]
[BlackFideId "3805662"]
[WhiteElo "2436"]
[BlackElo "2711"]
[Result "0-1"]
[Round "06"]
[TimeControl "180+2"]
[Date "2023.04.11"]
[WhiteClock "0:00:53"]
[BlackClock "0:02:18"]

1. e4 {[%clk 0:02:57]}  c5 {[%clk 0:02:59]} 2. Nf3 {[%clk 0:02:57]}  d6 {[%clk 0:03:00]} 3. d4 {[%clk 0:02:53]}  cxd4 {[%clk 0:03:00]} 4. Nxd4 {[%clk 0:02:53]}  a6 {[%clk 0:03:01]} 5. Nc3 {[%clk 0:02:53]}  e6 {[%clk 0:03:01]} 6. g4 {[%clk 0:02:45]}  h6 {[%clk 0:03:01]} 7. h4 {[%clk 0:02:45]}  Nf6 {[%clk 0:03:00]} 8. Rg1 {[%clk 0:02:42]}  Nfd7 {[%clk 0:03:00]} 9. g5 {[%clk 0:02:42]}  hxg5 {[%clk 0:03:00]} 10. hxg5 {[%clk 0:02:43]}  g6 {[%clk 0:03:01]} 11. f4 {[%clk 0:02:41]}  Qb6 {[%clk 0:02:53]} 12. Be3 {[%clk 0:02:00]}  Qxb2 {[%clk 0:02:50]} 13. Nde2 {[%clk 0:01:51]}  Qb4 {[%clk 0:02:41]} 14. Kf2 {[%clk 0:01:35]}  Nc6 {[%clk 0:02:38]} 15. Bg2 {[%clk 0:01:30]}  Qa5 {[%clk 0:02:31]} 16. Rb1 {[%clk 0:01:15]}  Nc5 {[%clk 0:02:30]} 17. Rh1 {[%clk 0:01:12]}  Rxh1 {[%clk 0:02:27]} 18. Qxh1 {[%clk 0:00:58]}  Bd7 {[%clk 0:02:26]} 19. Qh7 {[%clk 0:00:53]}  Qc7 {[%clk 0:02:18]} 0-1


[Site "https://www.chess.com"]

[Event "Titled Tuesday Blitz April 11 Late 2023"]
[White "Zhigalko, Sergei"]
[Black "Bolourchifard, Farzad"]
[WhiteFideId "13502956"]
[BlackFideId "12510084"]
[WhiteElo "2626"]
[BlackElo "2317"]
[Result "1-0"]
[Round "06"]
[TimeControl "180+2"]
[Date "2023.04.11"]
[WhiteClock "0:02:01"]
[BlackClock "0:00:25"]

1. e4 {[%clk 0:03:00]}  e5 {[%clk 0:02:59]} 2. Nf3 {[%clk 0:03:00]}  Nc6 {[%clk 0:02:59]} 3. Bc4 {[%clk 0:02:58]}  Bc5 {[%clk 0:02:59]} 4. b4 {[%clk 0:02:58]}  Bxb4 {[%clk 0:02:59]} 5. c3 {[%clk 0:02:58]}  Ba5 {[%clk 0:02:59]} 6. d4 {[%clk 0:02:56]}  exd4 {[%clk 0:03:00]} 7. O-O {[%clk 0:02:56]}  Nge7 {[%clk 0:02:59]} 8. Ng5 {[%clk 0:02:55]}  d5 {[%clk 0:02:59]} 9. Nxf7 {[%clk 0:02:55]}  Kxf7 {[%clk 0:02:56]} 10. exd5 {[%clk 0:02:56]}  Ne5 {[%clk 0:02:54]} 11. Bb3 {[%clk 0:02:57]}  dxc3 {[%clk 0:01:41]} 12. d6+ {[%clk 0:02:45]}  Be6 {[%clk 0:01:41]} 13. Qh5+ {[%clk 0:02:45]}  g6 {[%clk 0:01:24]} 14. Qxe5 {[%clk 0:02:41]}  Bxb3 {[%clk 0:01:17]} 15. Qxa5 {[%clk 0:02:19]}  Nc6 {[%clk 0:01:13]} 16. Qxc3 {[%clk 0:02:15]}  Be6 {[%clk 0:01:10]} 17. Bb2 {[%clk 0:02:10]}  Rg8 {[%clk 0:01:03]} 18. dxc7 {[%clk 0:02:09]}  Qxc7 {[%clk 0:00:26]} 19. Qf6+ {[%clk 0:02:09]}  Ke8 {[%clk 0:00:25]} 20. Qxe6+ {[%clk 0:02:08]}  Kf8 {[%clk 0:00:25]} 21. Re1 {[%clk 0:02:01]} 1-0


[Site "https://www.chess.com"]

[Event "Titled Tuesday Blitz April 11 Late 2023"]
[White "Mammadov, Zaur"]
[Black "Kollars, Dmitrij"]
[WhiteFideId "13401033"]
[BlackFideId "12909572"]
[WhiteElo "2441"]
[BlackElo "2584"]
[Result "1-0"]
[Round "06"]
[TimeControl "180+2"]
[Date "2023.04.11"]
[WhiteClock "0:00:46"]
[BlackClock "0:00:03"]

1. e4 {[%clk 0:03:00]}  e5 {[%clk 0:02:58]} 2. Nf3 {[%clk 0:03:00]}  Nc6 {[%clk 0:02:58]} 3. Nc3 {[%clk 0:03:01]}  Nf6 {[%clk 0:02:58]} 4. Be2 {[%clk 0:03:02]}  Bb4 {[%clk 0:02:53]} 5. Nd5 {[%clk 0:03:01]}  Bc5 {[%clk 0:02:52]} 6. c3 {[%clk 0:03:02]}  Nxe4 {[%clk 0:02:22]} 7. d4 {[%clk 0:03:00]}  exd4 {[%clk 0:02:21]} 8. cxd4 {[%clk 0:02:58]}  Be7 {[%clk 0:02:18]} 9. O-O {[%clk 0:02:56]}  O-O {[%clk 0:02:17]} 10. Bd3 {[%clk 0:02:54]}  Nf6 {[%clk 0:02:12]} 11. Nxe7+ {[%clk 0:02:53]}  Nxe7 {[%clk 0:02:10]} 12. Bg5 {[%clk 0:02:53]}  Ng6 {[%clk 0:02:10]} 13. h4 {[%clk 0:02:38]}  h6 {[%clk 0:02:07]} 14. h5 {[%clk 0:02:33]}  hxg5 {[%clk 0:01:59]} 15. hxg6 {[%clk 0:02:33]}  fxg6 {[%clk 0:01:52]} 16. Nxg5 {[%clk 0:02:27]}  Nh5 {[%clk 0:01:48]} 17. f4 {[%clk 0:02:22]}  Qf6 {[%clk 0:01:36]} 18. Bc4+ {[%clk 0:01:55]}  Kh8 {[%clk 0:01:31]} 19. Qd2 {[%clk 0:01:55]}  d6 {[%clk 0:01:10]} 20. Rae1 {[%clk 0:01:52]}  Bg4 {[%clk 0:01:06]} 21. Qe3 {[%clk 0:01:45]}  Nxf4 {[%clk 0:00:57]} 22. Nf7+ {[%clk 0:01:35]}  Rxf7 {[%clk 0:00:55]} 23. Bxf7 {[%clk 0:01:36]}  g5 {[%clk 0:00:46]} 24. g3 {[%clk 0:01:36]}  Bh3 {[%clk 0:00:29]} 25. Rf2 {[%clk 0:01:27]}  Qxf7 {[%clk 0:00:29]} 26. gxf4 {[%clk 0:01:23]}  g4 {[%clk 0:00:30]} 27. f5 {[%clk 0:01:17]}  Rf8 {[%clk 0:00:23]} 28. Kh2 {[%clk 0:01:16]}  Qf6 {[%clk 0:00:18]} 29. Qe7 {[%clk 0:01:09]}  Kg8 {[%clk 0:00:14]} 30. Qxf6 {[%clk 0:01:08]}  Rxf6 {[%clk 0:00:15]} 31. Re7 {[%clk 0:01:08]}  b6 {[%clk 0:00:12]} 32. Kg3 {[%clk 0:01:07]}  c5 {[%clk 0:00:11]} 33. Rxa7 {[%clk 0:01:02]}  cxd4 {[%clk 0:00:10]} 34. Rb7 {[%clk 0:01:02]}  d5 {[%clk 0:00:10]} 35. Rd7 {[%clk 0:01:00]}  Rc6 {[%clk 0:00:09]} 36. Rxd5 {[%clk 0:01:00]}  Rc4 {[%clk 0:00:09]} 37. Rd7 {[%clk 0:00:53]}  Rc1 {[%clk 0:00:08]} 38. f6 {[%clk 0:00:52]}  gxf6 {[%clk 0:00:06]} 39. Rxf6 {[%clk 0:00:51]}  Rg1+ {[%clk 0:00:06]} 40. Kh4 {[%clk 0:00:49]}  Rh1 {[%clk 0:00:04]} 41. Rxb6 {[%clk 0:00:46]}  Bf1+ {[%clk 0:00:03]} 42. Kg5 {[%clk 0:00:46]} 1-0


[Site "https://www.chess.com"]

[Event "Titled Tuesday Blitz April 11 Late 2023"]
[White "Makarian, Rudik"]
[Black "Kosteniuk, Alexandra"]
[WhiteFideId "44105681"]
[BlackFideId "4128125"]
[WhiteElo "2430"]
[BlackElo "2453"]
[Result "0-1"]
[Round "06"]
[TimeControl "180+2"]
[Date "2023.04.11"]
[WhiteClock "0:00:02"]
[BlackClock "0:00:09"]

1. d4 {[%clk 0:03:00]}  f5 {[%clk 0:03:00]} 2. c4 {[%clk 0:03:00]}  Nf6 {[%clk 0:03:00]} 3. Nc3 {[%clk 0:03:00]}  g6 {[%clk 0:03:00]} 4. g3 {[%clk 0:02:59]}  Bg7 {[%clk 0:03:01]} 5. Bg2 {[%clk 0:03:00]}  O-O {[%clk 0:03:01]} 6. Nh3 {[%clk 0:02:59]}  d6 {[%clk 0:02:59]} 7. d5 {[%clk 0:02:59]}  Na6 {[%clk 0:02:56]} 8. O-O {[%clk 0:02:58]}  Nc5 {[%clk 0:02:55]} 9. Nf4 {[%clk 0:02:59]}  a5 {[%clk 0:02:52]} 10. Qc2 {[%clk 0:02:54]}  Bd7 {[%clk 0:02:47]} 11. Rd1 {[%clk 0:02:52]}  a4 {[%clk 0:02:41]} 12. Rb1 {[%clk 0:02:52]}  Qe8 {[%clk 0:02:28]} 13. Be3 {[%clk 0:02:50]}  Nce4 {[%clk 0:02:23]} 14. Bd4 {[%clk 0:02:43]}  g5 {[%clk 0:02:15]} 15. Ne6 {[%clk 0:02:32]}  Bxe6 {[%clk 0:02:15]} 16. dxe6 {[%clk 0:02:32]}  Nxc3 {[%clk 0:01:52]} 17. Bxc3 {[%clk 0:02:33]}  Qh5 {[%clk 0:01:34]} 18. h3 {[%clk 0:02:24]}  Ne4 {[%clk 0:01:25]} 19. Bxg7 {[%clk 0:02:12]}  Kxg7 {[%clk 0:01:26]} 20. Rd5 {[%clk 0:01:21]}  c6 {[%clk 0:01:04]} 21. Rd4 {[%clk 0:01:02]}  Nc5 {[%clk 0:01:02]} 22. e3 {[%clk 0:00:54]}  Qg6 {[%clk 0:00:57]} 23. b4 {[%clk 0:00:51]}  axb3 {[%clk 0:00:56]} 24. axb3 {[%clk 0:00:51]}  Nxe6 {[%clk 0:00:54]} 25. Rd2 {[%clk 0:00:49]}  Qf6 {[%clk 0:00:54]} 26. b4 {[%clk 0:00:45]}  Ra1 {[%clk 0:00:52]} 27. b5 {[%clk 0:00:42]}  Rfa8 {[%clk 0:00:44]} 28. Rxa1 {[%clk 0:00:36]}  Rxa1+ {[%clk 0:00:43]} 29. Kh2 {[%clk 0:00:36]}  cxb5 {[%clk 0:00:35]} 30. cxb5 {[%clk 0:00:37]}  Nc5 {[%clk 0:00:36]} 31. Qc4 {[%clk 0:00:33]}  f4 {[%clk 0:00:30]} 32. exf4 {[%clk 0:00:30]}  gxf4 {[%clk 0:00:30]} 33. Rd4 {[%clk 0:00:19]}  Ra4 {[%clk 0:00:30]} 34. Qxa4 {[%clk 0:00:13]}  fxg3+ {[%clk 0:00:30]} 35. fxg3 {[%clk 0:00:13]}  Nxa4 {[%clk 0:00:29]} 36. Rxa4 {[%clk 0:00:12]}  Qb2 {[%clk 0:00:28]} 37. Rg4+ {[%clk 0:00:10]}  Kf6 {[%clk 0:00:27]} 38. Rf4+ {[%clk 0:00:10]}  Ke6 {[%clk 0:00:26]} 39. Rh4 {[%clk 0:00:09]}  Qxb5 {[%clk 0:00:20]} 40. Rxh7 {[%clk 0:00:07]}  Qb2 {[%clk 0:00:18]} 41. h4 {[%clk 0:00:06]}  b5 {[%clk 0:00:18]} 42. Rh6+ {[%clk 0:00:04]}  Kf7 {[%clk 0:00:17]} 43. Rh5 {[%clk 0:00:04]}  b4 {[%clk 0:00:16]} 44. Rb5 {[%clk 0:00:04]}  e6 {[%clk 0:00:16]} 45. Kh3 {[%clk 0:00:02]}  Qb1 {[%clk 0:00:14]} 46. h5 {[%clk 0:00:02]}  b3 {[%clk 0:00:14]} 47. Rb7+ {[%clk 0:00:02]}  Kf6 {[%clk 0:00:14]} 48. h6 {[%clk 0:00:02]}  b2 {[%clk 0:00:14]} 49. h7 {[%clk 0:00:03]}  Qf5+ {[%clk 0:00:13]} 50. g4 {[%clk 0:00:02]}  Qxh7+ {[%clk 0:00:11]} 51. Rxh7 {[%clk 0:00:03]}  b1=Q {[%clk 0:00:12]} 52. Rh6+ {[%clk 0:00:03]}  Ke7 {[%clk 0:00:12]} 53. g5 {[%clk 0:00:03]}  Qf5+ {[%clk 0:00:11]} 54. Kh4 {[%clk 0:00:03]}  Qf2+ {[%clk 0:00:12]} 55. Kh3 {[%clk 0:00:03]}  Qf5+ {[%clk 0:00:11]} 56. Kh4 {[%clk 0:00:03]}  Qf4+ {[%clk 0:00:11]} 57. Kh5 {[%clk 0:00:02]}  Qh2+ {[%clk 0:00:11]} 58. Kg6 {[%clk 0:00:03]}  Qxg2 {[%clk 0:00:12]} 59. Rh7+ {[%clk 0:00:03]}  Kd8 {[%clk 0:00:12]} 60. Kf6 {[%clk 0:00:03]}  e5 {[%clk 0:00:10]} 61. g6 {[%clk 0:00:03]}  Qf3+ {[%clk 0:00:10]} 62. Ke6 {[%clk 0:00:03]}  Qg4+ {[%clk 0:00:10]} 63. Kf6 {[%clk 0:00:04]}  Qf4+ {[%clk 0:00:10]} 64. Ke6 {[%clk 0:00:04]}  Qg4+ {[%clk 0:00:11]} 65. Kf7 {[%clk 0:00:04]}  Qf5+ {[%clk 0:00:11]} 66. Kg7 {[%clk 0:00:04]}  e4 {[%clk 0:00:10]} 67. Kh8 {[%clk 0:00:02]}  Qf8# {[%clk 0:00:09]} 0-1


[Site "https://www.chess.com"]

[Event "Titled Tuesday Blitz April 11 Late 2023"]
[White "Manukyan, Sargis A."]
[Black "Kravtsiv, Martyn"]
[WhiteFideId "13303970"]
[BlackFideId "14113147"]
[WhiteElo "2187"]
[BlackElo "2695"]
[Result "0-1"]
[Round "06"]
[TimeControl "180+2"]
[Date "2023.04.11"]
[WhiteClock "0:00:15"]
[BlackClock "0:00:36"]

1. d4 {[%clk 0:03:00]}  d5 {[%clk 0:02:59]} 2. c4 {[%clk 0:03:01]}  e6 {[%clk 0:02:59]} 3. Nc3 {[%clk 0:03:01]}  Nf6 {[%clk 0:02:59]} 4. Nf3 {[%clk 0:03:01]}  Nbd7 {[%clk 0:02:56]} 5. Bg5 {[%clk 0:02:57]}  Bb4 {[%clk 0:02:55]} 6. cxd5 {[%clk 0:02:57]}  exd5 {[%clk 0:02:54]} 7. e3 {[%clk 0:02:58]}  c5 {[%clk 0:02:54]} 8. Bd3 {[%clk 0:02:54]}  Qa5 {[%clk 0:02:53]} 9. O-O {[%clk 0:02:33]}  c4 {[%clk 0:02:51]} 10. Bf5 {[%clk 0:02:16]}  O-O {[%clk 0:02:50]} 11. Qc2 {[%clk 0:02:03]}  Re8 {[%clk 0:02:48]} 12. a3 {[%clk 0:01:53]}  Bxc3 {[%clk 0:02:47]} 13. bxc3 {[%clk 0:01:54]}  Ne4 {[%clk 0:02:44]} 14. Bf4 {[%clk 0:01:42]}  Ndf6 {[%clk 0:02:16]} 15. Bxc8 {[%clk 0:01:26]}  Raxc8 {[%clk 0:02:17]} 16. Rfc1 {[%clk 0:01:26]}  Re6 {[%clk 0:02:11]} 17. Nd2 {[%clk 0:01:25]}  Nxd2 {[%clk 0:02:09]} 18. Qxd2 {[%clk 0:01:25]}  Rb6 {[%clk 0:02:05]} 19. f3 {[%clk 0:01:25]}  Nh5 {[%clk 0:02:02]} 20. e4 {[%clk 0:01:23]}  Rb3 {[%clk 0:01:50]} 21. Bd6 {[%clk 0:01:12]}  Qd8 {[%clk 0:01:41]} 22. Be5 {[%clk 0:01:00]}  f6 {[%clk 0:01:32]} 23. Bf4 {[%clk 0:00:59]}  Qd7 {[%clk 0:01:31]} 24. Be3 {[%clk 0:00:48]}  f5 {[%clk 0:01:29]} 25. e5 {[%clk 0:00:44]}  Rc6 {[%clk 0:01:28]} 26. h3 {[%clk 0:00:35]}  g6 {[%clk 0:01:25]} 27. g4 {[%clk 0:00:35]}  Ng7 {[%clk 0:01:24]} 28. Bh6 {[%clk 0:00:27]}  Rcb6 {[%clk 0:01:24]} 29. Bxg7 {[%clk 0:00:21]}  Kxg7 {[%clk 0:01:20]} 30. Qg5 {[%clk 0:00:22]}  Rb2 {[%clk 0:01:18]} 31. Rf1 {[%clk 0:00:21]}  h6 {[%clk 0:01:08]} 32. Qf4 {[%clk 0:00:17]}  Rc2 {[%clk 0:01:00]} 33. Rae1 {[%clk 0:00:15]}  Rbb2 {[%clk 0:00:42]} 34. e6 {[%clk 0:00:15]}  Qe7 {[%clk 0:00:42]} 35. gxf5 {[%clk 0:00:15]}  Qg5+ {[%clk 0:00:30]} 36. Qxg5 {[%clk 0:00:14]}  hxg5 {[%clk 0:00:31]} 37. Rf2 {[%clk 0:00:07]}  Rxf2 {[%clk 0:00:32]} 38. e7 {[%clk 0:00:07]}  Rg2+ {[%clk 0:00:32]} 39. Kh1 {[%clk 0:00:07]}  Rh2+ {[%clk 0:00:33]} 40. Kg1 {[%clk 0:00:07]}  Rbg2+ {[%clk 0:00:33]} 41. Kf1 {[%clk 0:00:08]}  Rh1+ {[%clk 0:00:33]} 42. Kxg2 {[%clk 0:00:08]}  Rxe1 {[%clk 0:00:34]} 43. f6+ {[%clk 0:00:07]}  Kxf6 {[%clk 0:00:33]} 44. f4 {[%clk 0:00:08]}  gxf4 {[%clk 0:00:33]} 45. Kf3 {[%clk 0:00:08]}  Rxe7 {[%clk 0:00:32]} 46. Kg4 {[%clk 0:00:09]}  Re4 {[%clk 0:00:33]} 47. h4 {[%clk 0:00:09]}  f3+ {[%clk 0:00:33]} 48. Kxf3 {[%clk 0:00:08]}  Rxh4 {[%clk 0:00:33]} 49. a4 {[%clk 0:00:09]}  Re4 {[%clk 0:00:34]} 50. a5 {[%clk 0:00:10]}  a6 {[%clk 0:00:33]} 51. Kg3 {[%clk 0:00:10]}  Ke6 {[%clk 0:00:33]} 52. Kh3 {[%clk 0:00:11]}  Kd7 {[%clk 0:00:34]} 53. Kg3 {[%clk 0:00:11]}  Kc6 {[%clk 0:00:35]} 54. Kh3 {[%clk 0:00:12]}  Kb5 {[%clk 0:00:35]} 55. Kg3 {[%clk 0:00:13]}  Kxa5 {[%clk 0:00:35]} 56. Kh3 {[%clk 0:00:14]}  Ka4 {[%clk 0:00:36]} 57. Kg3 {[%clk 0:00:15]} 0-1


[Site "https://www.chess.com"]

[Event "Titled Tuesday Blitz April 11 Late 2023"]
[White "Kevlishvili, Robby"]
[Black "Manelyuk, Daniil"]
[WhiteFideId "1040634"]
[BlackFideId "44173920"]
[WhiteElo "2572"]
[BlackElo "2259"]
[Result "1-0"]
[Round "06"]
[TimeControl "180+2"]
[Date "2023.04.11"]
[WhiteClock "0:00:28"]
[BlackClock "0:00:05"]

1. e4 {[%clk 0:02:55]}  c6 {[%clk 0:02:58]} 2. Nf3 {[%clk 0:02:54]}  d5 {[%clk 0:02:58]} 3. Nc3 {[%clk 0:02:55]}  dxe4 {[%clk 0:02:57]} 4. Nxe4 {[%clk 0:02:55]}  Nf6 {[%clk 0:02:58]} 5. Qe2 {[%clk 0:02:54]}  Nxe4 {[%clk 0:02:58]} 6. Qxe4 {[%clk 0:02:55]}  Qd5 {[%clk 0:02:59]} 7. Qh4 {[%clk 0:02:53]}  Qf5 {[%clk 0:02:59]} 8. Bc4 {[%clk 0:02:47]}  Qxc2 {[%clk 0:02:55]} 9. d3 {[%clk 0:02:40]}  e6 {[%clk 0:02:35]} 10. O-O {[%clk 0:02:39]}  Be7 {[%clk 0:02:20]} 11. Qg3 {[%clk 0:02:37]}  Bf6 {[%clk 0:02:19]} 12. Ng5 {[%clk 0:02:26]}  Nd7 {[%clk 0:02:03]} 13. Ne4 {[%clk 0:02:19]}  Be5 {[%clk 0:02:04]} 14. Bf4 {[%clk 0:02:19]}  Bxf4 {[%clk 0:02:00]} 15. Qxf4 {[%clk 0:02:20]}  O-O {[%clk 0:01:58]} 16. Rab1 {[%clk 0:02:12]}  Nb6 {[%clk 0:01:45]} 17. Rfc1 {[%clk 0:01:58]}  Qa4 {[%clk 0:01:42]} 18. Nc5 {[%clk 0:01:55]}  Qb4 {[%clk 0:01:33]} 19. Qe3 {[%clk 0:01:43]}  Nd5 {[%clk 0:00:51]} 20. Bxd5 {[%clk 0:01:34]}  exd5 {[%clk 0:00:52]} 21. a3 {[%clk 0:01:28]}  Qb6 {[%clk 0:00:50]} 22. b4 {[%clk 0:01:27]}  Qd8 {[%clk 0:00:48]} 23. Re1 {[%clk 0:01:27]}  b6 {[%clk 0:00:47]} 24. Nb3 {[%clk 0:01:27]}  Bd7 {[%clk 0:00:46]} 25. Nd4 {[%clk 0:01:24]}  Re8 {[%clk 0:00:45]} 26. Qf4 {[%clk 0:01:24]}  Rxe1+ {[%clk 0:00:41]} 27. Rxe1 {[%clk 0:01:25]}  Qb8 {[%clk 0:00:41]} 28. Qh4 {[%clk 0:01:18]}  Qd6 {[%clk 0:00:40]} 29. h3 {[%clk 0:01:16]}  c5 {[%clk 0:00:39]} 30. bxc5 {[%clk 0:01:16]}  bxc5 {[%clk 0:00:39]} 31. Nf3 {[%clk 0:01:17]}  f6 {[%clk 0:00:22]} 32. Qh5 {[%clk 0:01:14]}  g6 {[%clk 0:00:20]} 33. Qh6 {[%clk 0:01:14]}  Re8 {[%clk 0:00:21]} 34. Rb1 {[%clk 0:01:13]}  c4 {[%clk 0:00:20]} 35. dxc4 {[%clk 0:01:11]}  dxc4 {[%clk 0:00:21]} 36. Qc1 {[%clk 0:01:09]}  Qd5 {[%clk 0:00:20]} 37. Qc3 {[%clk 0:01:07]}  Qf7 {[%clk 0:00:05]} 38. Rb7 {[%clk 0:01:05]}  Re7 {[%clk 0:00:04]} 39. Qd4 {[%clk 0:00:57]}  Be6 {[%clk 0:00:03]} 40. Rb8+ {[%clk 0:00:56]}  Kg7 {[%clk 0:00:03]} 41. Ng5 {[%clk 0:00:55]}  Rd7 {[%clk 0:00:02]} 42. Qc3 {[%clk 0:00:36]}  Rd1+ {[%clk 0:00:02]} 43. Kh2 {[%clk 0:00:34]}  Qc7+ {[%clk 0:00:03]} 44. g3 {[%clk 0:00:29]}  Qxb8 {[%clk 0:00:04]} 45. Nxe6+ {[%clk 0:00:30]}  Kh6 {[%clk 0:00:05]} 46. Qxf6 {[%clk 0:00:28]} 1-0


[Site "https://www.chess.com"]